[Event "Early-Titled-Tuesday-Blitz-March-19-2024"]
[Site "Chess.com"]
[Date "2024.03.19"]
[Round "3"]
[White "bennyficial"]
[Black "hell3raiser"]
[Result "0-1"]
[WhiteElo "2113"]
[BlackElo "2386"]
[TimeControl "180+1"]
[EndTime "8:29:10 PDT"]
[Termination "hell3raiser won by checkmate"]

1. Nf3 {[%clk 0:03:00.9]} 1... d5 {[%clk 0:02:55.9]} 2. e3 {[%clk 0:03:00.9]}
2... Nf6 {[%clk 0:02:55.5]} 3. c4 {[%clk 0:03:01.4]} 3... e6 {[%clk 0:02:55.3]}
4. b3 {[%clk 0:03:00.9]} 4... Be7 {[%clk 0:02:54.9]} 5. Bb2 {[%clk 0:03:01.3]}
5... c5 {[%clk 0:02:54.9]} 6. cxd5 {[%clk 0:03:00.9]} 6... exd5 {[%clk
0:02:53.1]} 7. Bb5+ {[%clk 0:03:00.5]} 7... Bd7 {[%clk 0:02:51.2]} 8. Bxd7+
{[%clk 0:02:59.8]} 8... Nbxd7 {[%clk 0:02:50.9]} 9. O-O {[%clk 0:02:59.9]} 9...
O-O {[%clk 0:02:48.5]} 10. d4 {[%clk 0:02:59.9]} 10... b6 {[%clk 0:02:45.8]} 11.
Nc3 {[%clk 0:02:57.6]} 11... Rc8 {[%clk 0:02:40.9]} 12. Rc1 {[%clk 0:02:54.7]}
12... c4 {[%clk 0:02:39.6]} 13. Ne2 {[%clk 0:02:49.5]} 13... b5 {[%clk
0:02:37.8]} 14. Ne5 {[%clk 0:02:48.7]} 14... Nxe5 {[%clk 0:02:31.2]} 15. dxe5
{[%clk 0:02:48.8]} 15... Ne4 {[%clk 0:02:32]} 16. Bd4 {[%clk 0:02:43.5]} 16...
a5 {[%clk 0:02:31.1]} 17. Ng3 {[%clk 0:02:27.4]} 17... Nxg3 {[%clk 0:02:25.8]}
18. hxg3 {[%clk 0:02:28.3]} 18... b4 {[%clk 0:02:24.6]} 19. f4 {[%clk
0:02:24.7]} 19... Qd7 {[%clk 0:02:19.8]} 20. g4 {[%clk 0:02:21.4]} 20... a4
{[%clk 0:02:19.2]} 21. f5 {[%clk 0:02:15.8]} 21... axb3 {[%clk 0:02:15.6]} 22.
axb3 {[%clk 0:02:15.5]} 22... Bg5 {[%clk 0:02:12.8]} 23. Rb1 {[%clk 0:01:45.6]}
23... Qb5 {[%clk 0:02:10.3]} 24. Qe2 {[%clk 0:01:34.1]} 24... Ra8 {[%clk
0:02:00.2]} 25. Rfc1 {[%clk 0:01:21.1]} 25... Rfc8 {[%clk 0:01:59.2]} 26. Rc2
{[%clk 0:01:07.4]} 26... g6 {[%clk 0:01:56.5]} 27. Ra2 {[%clk 0:00:59.5]} 27...
Rxa2 {[%clk 0:01:54.2]} 28. Qxa2 {[%clk 0:00:59.3]} 28... c3 {[%clk 0:01:54.2]}
29. Qc2 {[%clk 0:00:50.2]} 29... Ra8 {[%clk 0:01:53.1]} 30. Rf1 {[%clk
0:00:48.5]} 30... Qa6 {[%clk 0:01:45.6]} 31. fxg6 {[%clk 0:00:44.5]} 31... hxg6
{[%clk 0:01:44.9]} 32. Qf2 {[%clk 0:00:39.8]} 32... Qe6 {[%clk 0:01:43]} 33. Qg3
{[%clk 0:00:36.4]} 33... c2 {[%clk 0:01:38.3]} 34. Qf2 {[%clk 0:00:31.7]} 34...
Rc8 {[%clk 0:01:36.7]} 35. Rc1 {[%clk 0:00:30.8]} 35... Qxg4 {[%clk 0:01:33.3]}
36. Qd2 {[%clk 0:00:15.5]} 36... Qf5 {[%clk 0:01:23.8]} 37. Qxb4 {[%clk
0:00:11.3]} 37... Qd3 {[%clk 0:01:20.6]} 38. Qe1 {[%clk 0:00:10.9]} 38... Rb8
{[%clk 0:01:03.9]} 39. b4 {[%clk 0:00:10.5]} 39... Rxb4 {[%clk 0:00:31.7]} 40.
Qxb4 {[%clk 0:00:09.3]} 40... Bxe3+ {[%clk 0:00:31.4]} 41. Kh2 {[%clk
0:00:07.1]} 41... Bxc1 {[%clk 0:00:19.8]} 42. Qb8+ {[%clk 0:00:06.1]} 42... Kh7
{[%clk 0:00:20.1]} 43. Qa7 {[%clk 0:00:05.6]} 43... Bf4+ {[%clk 0:00:19.2]} 44.
Kh1 {[%clk 0:00:01.5]} 44... c1=Q+ {[%clk 0:00:18.2]} 45. Bg1 {[%clk 0:00:02.2]}
45... Qf5 {[%clk 0:00:15.2]} 46. e6 {[%clk 0:00:01.3]} 46... Qh5# {[%clk
0:00:14.6]} 0-1

[Event "Early-Titled-Tuesday-Blitz-March-19-2024"]
[Site "Chess.com"]
[Date "2024.03.19"]
[Round "3"]
[White "Alexchess1984"]
[Black "tusplingher"]
[Result "1-0"]
[WhiteElo "2767"]
[BlackElo "2464"]
[TimeControl "180+1"]
[EndTime "8:29:11 PDT"]
[Termination "Alexchess1984 won by resignation"]

1. e4 {[%clk 0:03:00.9]} 1... c5 {[%clk 0:02:59.4]} 2. c3 {[%clk 0:03:00.2]}
2... d5 {[%clk 0:02:57.8]} 3. exd5 {[%clk 0:03:00.1]} 3... Qxd5 {[%clk
0:02:57.8]} 4. d4 {[%clk 0:03:00.7]} 4... g6 {[%clk 0:02:52.4]} 5. Nf3 {[%clk
0:02:59.1]} 5... Bg7 {[%clk 0:02:49.4]} 6. Nbd2 {[%clk 0:02:59.6]} 6... cxd4
{[%clk 0:02:43]} 7. Bc4 {[%clk 0:02:58.8]} 7... Qd8 {[%clk 0:02:37.4]} 8. O-O
{[%clk 0:02:54.7]} 8... Nf6 {[%clk 0:02:36.1]} 9. Nxd4 {[%clk 0:02:53.3]} 9...
O-O {[%clk 0:02:36.1]} 10. N2f3 {[%clk 0:02:52.5]} 10... a6 {[%clk 0:02:27.6]}
11. a4 {[%clk 0:02:50.7]} 11... Qc7 {[%clk 0:02:22.7]} 12. Qe2 {[%clk
0:02:44.7]} 12... Nc6 {[%clk 0:02:16.9]} 13. Nxc6 {[%clk 0:02:27.1]} 13... Qxc6
{[%clk 0:02:17.8]} 14. Ne5 {[%clk 0:02:25.5]} 14... Qe4 {[%clk 0:02:16.1]} 15.
Re1 {[%clk 0:02:20]} 15... Qxe2 {[%clk 0:02:11.8]} 16. Rxe2 {[%clk 0:02:20.9]}
16... Bf5 {[%clk 0:01:58]} 17. h3 {[%clk 0:02:16.4]} 17... Be4 {[%clk
0:01:46.4]} 18. f3 {[%clk 0:02:11.3]} 18... Bd5 {[%clk 0:01:45.7]} 19. Bg5
{[%clk 0:01:59]} 19... Bxc4 {[%clk 0:01:32.2]} 20. Nxc4 {[%clk 0:01:59.9]} 20...
e6 {[%clk 0:01:25.5]} 21. Rd1 {[%clk 0:01:45.2]} 21... Nd5 {[%clk 0:01:22.7]}
22. a5 {[%clk 0:01:22.7]} 22... Rac8 {[%clk 0:01:12.3]} 23. Nb6 {[%clk 0:01:08]}
23... Nxb6 {[%clk 0:00:22.7]} 24. axb6 {[%clk 0:01:08.9]} 24... h6 {[%clk
0:00:13.2]} 25. Be7 {[%clk 0:01:07.2]} 25... Rfe8 {[%clk 0:00:13.1]} 26. Rd7
{[%clk 0:01:06.6]} 26... Rc6 {[%clk 0:00:05.9]} 27. Rxb7 {[%clk 0:01:02.1]}
27... Kh7 {[%clk 0:00:02.5]} 28. Bb4 {[%clk 0:00:59.9]} 28... Kg8 {[%clk
0:00:02.2]} 29. Re1 {[%clk 0:00:56.2]} 29... Rec8 {[%clk 0:00:02.4]} 30. Ra1
{[%clk 0:00:53.1]} 30... Bf6 {[%clk 0:00:02.1]} 31. Rxa6 {[%clk 0:00:51.2]}
31... Bd8 {[%clk 0:00:02.8]} 32. Ba5 {[%clk 0:00:35.5]} 32... Rc5 {[%clk
0:00:02.8]} 33. Raa7 {[%clk 0:00:12.6]} 33... Rb5 {[%clk 0:00:03.1]} 34. b4
{[%clk 0:00:10.6]} 34... Rxc3 {[%clk 0:00:01.8]} 35. Ra8 {[%clk 0:00:09.9]}
35... Rd3 {[%clk 0:00:02]} 36. Rbb8 {[%clk 0:00:09.7]} 36... Rbd5 {[%clk
0:00:02.7]} 37. b7 {[%clk 0:00:09.7]} 37... Rd1+ {[%clk 0:00:02.9]} 38. Kh2
{[%clk 0:00:09.3]} 38... Kg7 {[%clk 0:00:03.3]} 39. Rxd8 {[%clk 0:00:09.4]}
39... Rb5 {[%clk 0:00:03.4]} 40. b8=Q {[%clk 0:00:09]} 40... Rxb8 {[%clk
0:00:03.4]} 41. Raxb8 {[%clk 0:00:09.9]} 41... Rxd8 {[%clk 0:00:03.2]} 42. Rxd8
{[%clk 0:00:10]} 1-0

[Event "Early-Titled-Tuesday-Blitz-March-19-2024"]
[Site "Chess.com"]
[Date "2024.03.19"]
[Round "3"]
[White "Mikhail_Golubev"]
[Black "cande_francisco"]
[Result "0-1"]
[WhiteElo "2713"]
[BlackElo "2518"]
[TimeControl "180+1"]
[EndTime "8:29:11 PDT"]
[Termination "cande_francisco won on time"]

1. e4 {[%clk 0:03:00.9]} 1... c5 {[%clk 0:02:57.8]} 2. Nf3 {[%clk 0:03:00.5]}
2... a6 {[%clk 0:02:58]} 3. Nc3 {[%clk 0:02:58.7]} 3... Nc6 {[%clk 0:02:57.5]}
4. d4 {[%clk 0:02:58.5]} 4... cxd4 {[%clk 0:02:58.4]} 5. Nxd4 {[%clk 0:02:58.8]}
5... e6 {[%clk 0:02:57.9]} 6. Be3 {[%clk 0:02:57.1]} 6... d6 {[%clk 0:02:48.9]}
7. f4 {[%clk 0:02:54.9]} 7... Nf6 {[%clk 0:02:48.9]} 8. Qf3 {[%clk 0:02:54]}
8... Qc7 {[%clk 0:02:42.2]} 9. O-O-O {[%clk 0:02:51.3]} 9... Nxd4 {[%clk
0:02:33.3]} 10. Bxd4 {[%clk 0:02:47.3]} 10... e5 {[%clk 0:02:33.7]} 11. fxe5
{[%clk 0:02:38.2]} 11... dxe5 {[%clk 0:02:31.1]} 12. Qg3 {[%clk 0:02:35.4]}
12... Bg4 {[%clk 0:01:37.2]} 13. Bxe5 {[%clk 0:02:21.5]} 13... Qa5 {[%clk
0:01:37.5]} 14. Rd3 {[%clk 0:01:13.2]} 14... Be6 {[%clk 0:01:28.4]} 15. a3
{[%clk 0:00:51.6]} 15... Nh5 {[%clk 0:01:05.1]} 16. Qg5 {[%clk 0:00:46.6]} 16...
h6 {[%clk 0:01:02.7]} 17. Qxh5 {[%clk 0:00:41.3]} 17... g6 {[%clk 0:01:02.9]}
18. Qxg6 {[%clk 0:00:17.1]} 18... fxg6 {[%clk 0:00:48.6]} 19. Bxh8 {[%clk
0:00:17.5]} 19... Rc8 {[%clk 0:00:44.7]} 20. Be2 {[%clk 0:00:15.4]} 20... Bc4
{[%clk 0:00:40.1]} 21. Rd2 {[%clk 0:00:12]} 21... Bxe2 {[%clk 0:00:34.2]} 22.
Rxe2 {[%clk 0:00:12.9]} 22... Bxa3 {[%clk 0:00:25.1]} 23. bxa3 {[%clk 0:00:12]}
23... Rxc3 {[%clk 0:00:16.8]} 24. Bxc3 {[%clk 0:00:10.5]} 24... Qxc3 {[%clk
0:00:17.7]} 25. Rd1 {[%clk 0:00:06.8]} 25... Qa1+ {[%clk 0:00:14.6]} 26. Kd2
{[%clk 0:00:06.8]} 26... Qxa3 {[%clk 0:00:15.5]} 27. e5 {[%clk 0:00:06.1]} 27...
a5 {[%clk 0:00:11.8]} 28. e6 {[%clk 0:00:05.7]} 28... Qb4+ {[%clk 0:00:11]} 29.
Kc1 {[%clk 0:00:05.2]} 29... Qa3+ {[%clk 0:00:11.1]} 30. Kd2 {[%clk 0:00:05.5]}
30... Qb4+ {[%clk 0:00:12]} 31. c3 {[%clk 0:00:05.8]} 31... Qb2+ {[%clk
0:00:11.2]} 32. Kd3 {[%clk 0:00:05.8]} 32... Qb5+ {[%clk 0:00:11.9]} 33. Kd2
{[%clk 0:00:05.8]} 33... Qb2+ {[%clk 0:00:12.2]} 34. Kd3 {[%clk 0:00:05.4]}
34... Qb5+ {[%clk 0:00:12.2]} 35. Ke3 {[%clk 0:00:05.7]} 35... Qc5+ {[%clk
0:00:11.2]} 36. Kf3 {[%clk 0:00:02.7]} 36... Qxc3+ {[%clk 0:00:07.9]} 37. Re3
{[%clk 0:00:02.6]} 37... Qf6+ {[%clk 0:00:08.4]} 38. Ke2 {[%clk 0:00:02.5]}
38... Qb2+ {[%clk 0:00:08.3]} 39. Kf1 {[%clk 0:00:02.3]} 39... Qb5+ {[%clk
0:00:07.3]} 40. Kg1 {[%clk 0:00:01.5]} 40... Qc5 {[%clk 0:00:07.9]} 41. Re1
{[%clk 0:00:01.7]} 41... a4 {[%clk 0:00:06.5]} 0-1

[Event "Early-Titled-Tuesday-Blitz-March-19-2024"]
[Site "Chess.com"]
[Date "2024.03.19"]
[Round "3"]
[White "Danny_Billiards"]
[Black "VladimirKramnik"]
[Result "0-1"]
[WhiteElo "2771"]
[BlackElo "3044"]
[TimeControl "180+1"]
[EndTime "8:29:13 PDT"]
[Termination "VladimirKramnik won by resignation"]

1. d4 {[%clk 0:03:00.9]} 1... Nf6 {[%clk 0:02:58.6]} 2. Nc3 {[%clk 0:03:01]}
2... e6 {[%clk 0:02:57.1]} 3. Bf4 {[%clk 0:02:58.4]} 3... Bb4 {[%clk 0:02:55.8]}
4. Qd3 {[%clk 0:02:56.3]} 4... c5 {[%clk 0:02:52.7]} 5. a3 {[%clk 0:02:41.8]}
5... Bxc3+ {[%clk 0:02:52]} 6. Qxc3 {[%clk 0:02:42.7]} 6... cxd4 {[%clk
0:02:43]} 7. Qxd4 {[%clk 0:02:40]} 7... Nc6 {[%clk 0:02:43.6]} 8. Qd2 {[%clk
0:02:29]} 8... Ne4 {[%clk 0:02:37.9]} 9. Qd3 {[%clk 0:02:19.8]} 9... d5 {[%clk
0:02:34.8]} 10. Nf3 {[%clk 0:02:18.4]} 10... Qb6 {[%clk 0:02:31.7]} 11. Be3
{[%clk 0:01:55.6]} 11... Qxb2 {[%clk 0:02:29.9]} 12. Rd1 {[%clk 0:01:56]} 12...
O-O {[%clk 0:02:23.5]} 13. g3 {[%clk 0:01:54.7]} 13... e5 {[%clk 0:02:06.9]} 14.
Ng5 {[%clk 0:01:05.9]} 14... Bf5 {[%clk 0:01:52.3]} 15. Qb3 {[%clk 0:00:55.7]}
15... Qxb3 {[%clk 0:01:46.4]} 16. cxb3 {[%clk 0:00:55.9]} 16... d4 {[%clk
0:01:47]} 17. Bd2 {[%clk 0:00:49.4]} 17... Nxd2 {[%clk 0:01:42.7]} 18. Rxd2
{[%clk 0:00:49.1]} 18... h6 {[%clk 0:01:41.1]} 19. Nf3 {[%clk 0:00:48.7]} 19...
Rfd8 {[%clk 0:01:39.7]} 20. Bg2 {[%clk 0:00:48.4]} 20... e4 {[%clk 0:01:38.8]}
21. Nh4 {[%clk 0:00:48.3]} 21... Bh7 {[%clk 0:01:39.3]} 22. g4 {[%clk
0:00:46.8]} 22... Ne5 {[%clk 0:01:35.9]} 23. Nf5 {[%clk 0:00:41.2]} 23... Bxf5
{[%clk 0:01:14.3]} 24. gxf5 {[%clk 0:00:42.1]} 24... e3 {[%clk 0:01:13.2]} 25.
fxe3 {[%clk 0:00:41.4]} 25... dxe3 {[%clk 0:01:12.1]} 26. Rxd8+ {[%clk
0:00:41.8]} 26... Rxd8 {[%clk 0:01:12.7]} 27. Bxb7 {[%clk 0:00:42.5]} 27... Rd2
{[%clk 0:01:10.8]} 28. Ba6 {[%clk 0:00:29.8]} 28... Ra2 {[%clk 0:01:05.2]} 29.
O-O {[%clk 0:00:29.8]} 29... Rxa3 {[%clk 0:01:05]} 30. Bc4 {[%clk 0:00:28.8]}
30... Ra2 {[%clk 0:01:03.5]} 31. Rc1 {[%clk 0:00:21.7]} 31... Nxc4 {[%clk
0:00:56.9]} 32. bxc4 {[%clk 0:00:22.6]} 32... Rxe2 {[%clk 0:00:55.2]} 33. Rc3
{[%clk 0:00:09.7]} 33... Rf2 {[%clk 0:00:46.9]} 34. Rxe3 {[%clk 0:00:09.6]}
34... Rxf5 {[%clk 0:00:47.3]} 35. Re8+ {[%clk 0:00:08.2]} 35... Kh7 {[%clk
0:00:46.3]} 36. Re7 {[%clk 0:00:06.3]} 36... a5 {[%clk 0:00:46.3]} 37. Rc7
{[%clk 0:00:05.1]} 37... Kg6 {[%clk 0:00:44.9]} 38. c5 {[%clk 0:00:05.5]} 38...
a4 {[%clk 0:00:44.8]} 39. c6 {[%clk 0:00:04.5]} 39... Rc5 {[%clk 0:00:44.2]} 40.
Ra7 {[%clk 0:00:03.8]} 40... Rxc6 {[%clk 0:00:43.9]} 41. Rxa4 {[%clk 0:00:04.6]}
41... f5 {[%clk 0:00:43.9]} 42. Kg2 {[%clk 0:00:04.8]} 42... Kf6 {[%clk
0:00:43]} 43. h4 {[%clk 0:00:05.3]} 43... g5 {[%clk 0:00:42.6]} 44. Kf3 {[%clk
0:00:05.4]} 44... Rc3+ {[%clk 0:00:41.7]} 45. Kf2 {[%clk 0:00:05.7]} 45... g4
{[%clk 0:00:41.9]} 46. Ra6+ {[%clk 0:00:05.3]} 46... Ke5 {[%clk 0:00:42]} 47.
Rxh6 {[%clk 0:00:05.4]} 47... Kf4 {[%clk 0:00:42]} 48. Ra6 {[%clk 0:00:05.4]}
48... Rc2+ {[%clk 0:00:41.5]} 49. Kf1 {[%clk 0:00:05.5]} 49... Kg3 {[%clk
0:00:39.9]} 50. h5 {[%clk 0:00:05.9]} 50... f4 {[%clk 0:00:38.7]} 51. h6 {[%clk
0:00:06.4]} 51... f3 {[%clk 0:00:37.6]} 52. Ke1 {[%clk 0:00:04.7]} 52... f2+
{[%clk 0:00:35.7]} 0-1

[Event "Early-Titled-Tuesday-Blitz-March-19-2024"]
[Site "Chess.com"]
[Date "2024.03.19"]
[Round "3"]
[White "zubridis"]
[Black "Blitzstream"]
[Result "0-1"]
[WhiteElo "2533"]
[BlackElo "2830"]
[TimeControl "180+1"]
[EndTime "8:29:14 PDT"]
[Termination "Blitzstream won on time"]

1. e4 {[%clk 0:03:00.4]} 1... c5 {[%clk 0:03:00.2]} 2. Nf3 {[%clk 0:02:58.7]}
2... d6 {[%clk 0:03:00.6]} 3. Bc4 {[%clk 0:02:58.1]} 3... Nf6 {[%clk 0:02:57.9]}
4. d3 {[%clk 0:02:58.5]} 4... g6 {[%clk 0:02:58]} 5. O-O {[%clk 0:02:56.3]} 5...
Bg7 {[%clk 0:02:58.5]} 6. h3 {[%clk 0:02:53]} 6... O-O {[%clk 0:02:58.5]} 7. Re1
{[%clk 0:02:51.5]} 7... Nc6 {[%clk 0:02:58.7]} 8. a3 {[%clk 0:02:51]} 8... a6
{[%clk 0:02:47.3]} 9. Nc3 {[%clk 0:02:45.1]} 9... b5 {[%clk 0:02:47.3]} 10. Ba2
{[%clk 0:02:44.9]} 10... e6 {[%clk 0:02:44.4]} 11. Be3 {[%clk 0:02:34.4]} 11...
Qe7 {[%clk 0:02:39.7]} 12. d4 {[%clk 0:02:32.8]} 12... cxd4 {[%clk 0:02:38.5]}
13. Nxd4 {[%clk 0:02:33.7]} 13... Bb7 {[%clk 0:02:35.1]} 14. Nxc6 {[%clk
0:02:23.4]} 14... Bxc6 {[%clk 0:02:35]} 15. Bd4 {[%clk 0:02:20.4]} 15... e5
{[%clk 0:02:11.1]} 16. Bb6 {[%clk 0:02:15.4]} 16... Qb7 {[%clk 0:02:04.1]} 17.
Ba5 {[%clk 0:01:24.3]} 17... Nxe4 {[%clk 0:02:03.3]} 18. Nxe4 {[%clk 0:01:15.6]}
18... Bxe4 {[%clk 0:02:04.2]} 19. f3 {[%clk 0:01:16.1]} 19... Bf5 {[%clk
0:01:59.3]} 20. Qxd6 {[%clk 0:01:13.8]} 20... Bxc2 {[%clk 0:01:51.4]} 21. Bd5
{[%clk 0:01:00]} 21... Qb8 {[%clk 0:01:16.1]} 22. Bc7 {[%clk 0:00:51.9]} 22...
Qc8 {[%clk 0:01:08.1]} 23. Rac1 {[%clk 0:00:35.7]} 23... Bf5 {[%clk 0:01:02.1]}
24. Bb6 {[%clk 0:00:17.2]} 24... Qb8 {[%clk 0:00:56.6]} 25. Rc7 {[%clk
0:00:16.6]} 25... Rd8 {[%clk 0:00:45.8]} 26. Qe7 {[%clk 0:00:13.1]} 26... Qxb6+
{[%clk 0:00:34.6]} 27. Kh2 {[%clk 0:00:12.9]} 27... Qxc7 {[%clk 0:00:29.9]} 28.
Bxf7+ {[%clk 0:00:11.6]} 28... Kh8 {[%clk 0:00:25.7]} 29. Qxc7 {[%clk
0:00:12.5]} 29... Rd7 {[%clk 0:00:26]} 30. Qc6 {[%clk 0:00:10.5]} 30... Rad8
{[%clk 0:00:25]} 31. Bb3 {[%clk 0:00:08.8]} 31... Rd6 {[%clk 0:00:25]} 32. Qc7
{[%clk 0:00:07.1]} 32... R6d7 {[%clk 0:00:23.4]} 33. Qb6 {[%clk 0:00:06.4]}
33... Rd6 {[%clk 0:00:23.1]} 34. Qb7 {[%clk 0:00:06.6]} 34... Bh6 {[%clk
0:00:22.4]} 35. g4 {[%clk 0:00:03.1]} 35... Bc8 {[%clk 0:00:18.1]} 36. Qe7
{[%clk 0:00:02.7]} 36... Bf4+ {[%clk 0:00:17.4]} 37. Kh1 {[%clk 0:00:03]} 37...
a5 {[%clk 0:00:13.1]} 38. Rxe5 {[%clk 0:00:02.5]} 38... a4 {[%clk 0:00:10.5]}
39. Be6 {[%clk 0:00:02.4]} 39... Rd1+ {[%clk 0:00:06.3]} 0-1

[Event "Early-Titled-Tuesday-Blitz-March-19-2024"]
[Site "Chess.com"]
[Date "2024.03.19"]
[Round "3"]
[White "Quattroporte300"]
[Black "IMchanged"]
[Result "1-0"]
[WhiteElo "2487"]
[BlackElo "2682"]
[TimeControl "180+1"]
[EndTime "8:29:14 PDT"]
[Termination "Quattroporte300 won by resignation"]

1. e4 {[%clk 0:03:00.9]} 1... g6 {[%clk 0:02:58.6]} 2. d4 {[%clk 0:03:00.4]}
2... Bg7 {[%clk 0:02:58.3]} 3. Nf3 {[%clk 0:03:00.9]} 3... d6 {[%clk 0:02:58]}
4. Bc4 {[%clk 0:03:01.3]} 4... a6 {[%clk 0:02:56.7]} 5. O-O {[%clk 0:03:00.3]}
5... b5 {[%clk 0:02:56.2]} 6. Bb3 {[%clk 0:03:00.4]} 6... Bb7 {[%clk 0:02:55.8]}
7. Re1 {[%clk 0:03:00.3]} 7... e6 {[%clk 0:02:52.9]} 8. a4 {[%clk 0:02:57.9]}
8... Nf6 {[%clk 0:02:51]} 9. Qd3 {[%clk 0:02:56.3]} 9... Nbd7 {[%clk 0:02:46.6]}
10. Nbd2 {[%clk 0:02:44.9]} 10... bxa4 {[%clk 0:02:37.2]} 11. Bxa4 {[%clk
0:02:39]} 11... O-O {[%clk 0:02:37.3]} 12. c4 {[%clk 0:02:39]} 12... c5 {[%clk
0:02:32.1]} 13. d5 {[%clk 0:02:35.3]} 13... Qe7 {[%clk 0:02:17.4]} 14. Ra2
{[%clk 0:02:30.9]} 14... Ng4 {[%clk 0:02:11.5]} 15. Bxd7 {[%clk 0:02:23.3]}
15... Qxd7 {[%clk 0:02:11.3]} 16. h3 {[%clk 0:02:17]} 16... Nf6 {[%clk
0:02:06.2]} 17. b3 {[%clk 0:02:13.6]} 17... exd5 {[%clk 0:02:03.6]} 18. cxd5
{[%clk 0:01:58.7]} 18... Rfe8 {[%clk 0:01:59.9]} 19. Nc4 {[%clk 0:01:57.5]}
19... Qe7 {[%clk 0:01:47.7]} 20. Rae2 {[%clk 0:01:43.7]} 20... Rad8 {[%clk
0:01:39.2]} 21. Bg5 {[%clk 0:01:26]} 21... h6 {[%clk 0:01:38]} 22. e5 {[%clk
0:01:21.9]} 22... dxe5 {[%clk 0:01:14.8]} 23. Rxe5 {[%clk 0:01:21.4]} 23... Qf8
{[%clk 0:01:07]} 24. Bxf6 {[%clk 0:00:56]} 24... Bxf6 {[%clk 0:00:55.6]} 25.
Rxe8 {[%clk 0:00:55]} 25... Rxe8 {[%clk 0:00:56.5]} 26. Rxe8 {[%clk 0:00:48.7]}
26... Qxe8 {[%clk 0:00:57.4]} 27. Nd6 {[%clk 0:00:48.3]} 27... Qd7 {[%clk
0:00:57.3]} 28. Nxb7 {[%clk 0:00:48.3]} 28... Qxb7 {[%clk 0:00:58.2]} 29. Nd2
{[%clk 0:00:43.2]} 29... Bd4 {[%clk 0:00:56.8]} 30. Qc4 {[%clk 0:00:36.8]} 30...
Qb6 {[%clk 0:00:43.2]} 31. Nf3 {[%clk 0:00:35.8]} 31... Bf6 {[%clk 0:00:43.7]}
32. Qd3 {[%clk 0:00:31]} 32... Kf8 {[%clk 0:00:38.5]} 33. g3 {[%clk 0:00:28]}
33... Ke7 {[%clk 0:00:35.3]} 34. Kg2 {[%clk 0:00:28.5]} 34... Kd7 {[%clk
0:00:29.3]} 35. h4 {[%clk 0:00:28.7]} 35... h5 {[%clk 0:00:29]} 36. Qc4 {[%clk
0:00:26.7]} 36... Be7 {[%clk 0:00:21]} 37. Ne5+ {[%clk 0:00:24.8]} 37... Ke8
{[%clk 0:00:19.6]} 38. Nc6 {[%clk 0:00:19.8]} 38... Bd6 {[%clk 0:00:18.2]} 39.
Qe4+ {[%clk 0:00:18.9]} 39... Kd7 {[%clk 0:00:18.9]} 40. Qf3 {[%clk 0:00:18.2]}
40... Ke8 {[%clk 0:00:18.8]} 41. Qe3+ {[%clk 0:00:14.5]} 41... Kf8 {[%clk
0:00:18.8]} 42. Qd3 {[%clk 0:00:11.3]} 42... a5 {[%clk 0:00:17.6]} 43. Qc4
{[%clk 0:00:11.5]} 43... Qc7 {[%clk 0:00:16.2]} 44. Qb5 {[%clk 0:00:11.4]} 44...
Qd7 {[%clk 0:00:15]} 45. Qxa5 {[%clk 0:00:11.4]} 45... Qf5 {[%clk 0:00:15]} 46.
Qd8+ {[%clk 0:00:11.3]} 46... Kg7 {[%clk 0:00:13.5]} 47. Qxd6 {[%clk 0:00:11.9]}
47... Qe4+ {[%clk 0:00:14.3]} 48. Kh2 {[%clk 0:00:10.9]} 48... Qf3 {[%clk
0:00:14.9]} 49. Qe5+ {[%clk 0:00:11.2]} 49... f6 {[%clk 0:00:15.6]} 50. Qe7+
{[%clk 0:00:11.1]} 50... Kh6 {[%clk 0:00:16.3]} 51. Qe3+ {[%clk 0:00:11.5]}
51... Kh7 {[%clk 0:00:17]} 52. Qxf3 {[%clk 0:00:11.7]} 1-0

[Event "Early-Titled-Tuesday-Blitz-March-19-2024"]
[Site "Chess.com"]
[Date "2024.03.19"]
[Round "3"]
[White "enriquebutti"]
[Black "Keeper0416"]
[Result "1-0"]
[WhiteElo "2186"]
[BlackElo "2561"]
[TimeControl "180+1"]
[EndTime "8:29:20 PDT"]
[Termination "enriquebutti won on time"]

1. d4 {[%clk 0:02:57]} 1... Nf6 {[%clk 0:02:56.2]} 2. Nf3 {[%clk 0:02:55.7]}
2... e6 {[%clk 0:02:53.4]} 3. e3 {[%clk 0:02:55.3]} 3... d5 {[%clk 0:02:49.9]}
4. Bd3 {[%clk 0:02:54.7]} 4... c5 {[%clk 0:02:48.9]} 5. b3 {[%clk 0:02:54.4]}
5... a6 {[%clk 0:02:45.3]} 6. c4 {[%clk 0:02:48.8]} 6... dxc4 {[%clk 0:02:44]}
7. bxc4 {[%clk 0:02:48.5]} 7... Nc6 {[%clk 0:02:37]} 8. Bb2 {[%clk 0:02:46]}
8... cxd4 {[%clk 0:02:37.2]} 9. exd4 {[%clk 0:02:45.5]} 9... Bb4+ {[%clk
0:02:37.7]} 10. Nbd2 {[%clk 0:02:45.1]} 10... O-O {[%clk 0:02:38.1]} 11. O-O
{[%clk 0:02:41.2]} 11... Bd7 {[%clk 0:02:38.6]} 12. a3 {[%clk 0:02:36.6]} 12...
Be7 {[%clk 0:02:35.1]} 13. Re1 {[%clk 0:02:33.6]} 13... Qc7 {[%clk 0:02:30.4]}
14. Nf1 {[%clk 0:02:28.4]} 14... Rad8 {[%clk 0:02:29.3]} 15. Ne3 {[%clk
0:02:27.6]} 15... Bc8 {[%clk 0:02:28.1]} 16. d5 {[%clk 0:02:24.2]} 16... Na5
{[%clk 0:02:23.9]} 17. Ne5 {[%clk 0:02:11]} 17... Kh8 {[%clk 0:02:12.6]} 18.
N5g4 {[%clk 0:01:58]} 18... Ng8 {[%clk 0:00:52.8]} 19. Qf3 {[%clk 0:01:36.2]}
19... f5 {[%clk 0:00:41.5]} 20. Qh3 {[%clk 0:01:28]} 20... Bf6 {[%clk 0:00:22]}
21. Nxf6 {[%clk 0:01:27]} 21... Nxf6 {[%clk 0:00:22.9]} 22. Rad1 {[%clk
0:01:14.1]} 22... exd5 {[%clk 0:00:16.6]} 23. Nxf5 {[%clk 0:00:58.8]} 23... dxc4
{[%clk 0:00:12.1]} 24. Bc2 {[%clk 0:00:45.2]} 24... Rxd1 {[%clk 0:00:10]} 25.
Rxd1 {[%clk 0:00:44.7]} 25... b5 {[%clk 0:00:06.3]} 26. Qh4 {[%clk 0:00:36.6]}
26... Bxf5 {[%clk 0:00:03.9]} 27. Bxf5 {[%clk 0:00:35.6]} 27... c3 {[%clk
0:00:04.4]} 28. Rd7 {[%clk 0:00:28]} 28... Qxd7 {[%clk 0:00:03.3]} 29. Bxd7
{[%clk 0:00:27.3]} 29... cxb2 {[%clk 0:00:03.8]} 30. Bf5 {[%clk 0:00:26.5]}
30... Rc8 {[%clk 0:00:02.6]} 31. h3 {[%clk 0:00:23.3]} 31... Rc1+ {[%clk
0:00:02.7]} 32. Kh2 {[%clk 0:00:22.8]} 32... Rc4 {[%clk 0:00:01.5]} 33. Qg3
{[%clk 0:00:21.9]} 33... Kg8 {[%clk 0:00:01.3]} 34. Be6+ {[%clk 0:00:20.5]}
34... Kf8 {[%clk 0:00:01.6]} 35. Qb8+ {[%clk 0:00:20.2]} 35... Ke7 {[%clk
0:00:01.8]} 36. Bf5 {[%clk 0:00:19.4]} 36... Nc6 {[%clk 0:00:02.2]} 37. Qb7+
{[%clk 0:00:18.9]} 37... Kd6 {[%clk 0:00:02.5]} 38. Qxg7 {[%clk 0:00:18]} 38...
Nd5 {[%clk 0:00:03.1]} 39. Qxh7 {[%clk 0:00:15.9]} 39... Ke5 {[%clk 0:00:02.8]}
40. Bb1 {[%clk 0:00:14.9]} 40... Nd4 {[%clk 0:00:02.4]} 41. g4 {[%clk
0:00:13.6]} 41... Nf4 {[%clk 0:00:01.7]} 42. Qe4+ {[%clk 0:00:12.1]} 1-0